bitfinex-derivatives/quotes_BTCF0:USTF0_20240913
["timestamp","ask_amount","ask_price","bid_price","bid_amount"]
[1726238460788,0.085788,58280.0,58279.0,0.285789]
[1726238460992,0.3608,58284.0,58279.0,0.2]
[1726238461199,0.3608,58290.0,58289.0,0.085775]
[1726238461393,0.3608,58290.0,58289.0,0.285775]
[1726238461588,0.085776,58288.0,58287.0,0.085777]
[1726238461789,0.085776,58288.0,58286.0,0.2]
[1726238461790,0.085785,58282.0,58281.0,0.085785]
[1726238462089,0.3608,58284.0,58281.0,0.2]
[1726238462595,0.3608,58284.0,58283.0,0.085784]
[1726238462796,0.085781,58285.0,58283.0,0.085784]
[1726238462992,0.00625564,58285.0,58281.0,0.2]
[1726238463198,0.3608,58290.0,58289.0,0.085775]
[1726238463792,0.3608,58290.0,58289.0,0.772005]
[1726238463994,0.2116,58297.0,58296.0,0.085764]
[1726238464298,0.2116,58297.0,58296.0,0.285764]
[1726238465489,0.00640252,58298.0,58297.0,0.085763]
[1726238465687,0.13676923,58309.0,58297.0,0.5146]
[1726238465688,0.085748,58307.0,58297.0,0.5146]
[1726238465901,0.085748,58307.0,58296.0,1.1608]
[1726238465902,0.5608,58312.0,58301.0,0.085756]
[1726238466102,0.0536818,58311.0,58301.0,0.085756]
[1726238466299,0.0536932,58310.0,58298.0,0.27]
[1726238466506,0.0536932,58310.0,58294.0,0.085767]
[1726238466507,0.0536932,58309.0,58303.0,0.27]
[1726238466798,0.3608,58307.0,58303.0,0.27]
[1726238466997,0.3608,58307.0,58306.0,0.085749]
[1726238467198,0.3608,58307.0,58303.0,0.27]
[1726238467392,0.3608,58307.0,58299.0,0.08576]
[1726238467594,0.3608,58300.0,58290.0,0.27]
[1726238467796,0.085767,58295.0,58290.0,0.27628669]
[1726238467991,0.2059,58299.0,58290.0,0.27628669]
[1726238467992,0.3118,58299.0,58290.0,0.27]
[1726238468190,0.085766,58295.0,58290.0,0.355773]
[1726238468393,0.3118,58299.0,58287.0,0.3608]
[1726238468700,0.3608,58290.0,58285.0,0.085781]
[1726238468891,0.3608,58295.0,58286.0,0.27]
[1726238469097,0.085769,58293.0,58288.0,0.085776]
[1726238469404,0.085769,58293.0,58289.0,0.085774]
[1726238469901,0.1016,58294.0,58290.0,0.27]
[1726238470206,0.3608,58295.0,58290.0,0.27]
[1726238470499,0.3608,58295.0,58294.0,0.085767]
[1726238470689,0.3608,58295.0,58290.0,0.355772]
[1726238470894,0.3608,58295.0,58290.0,0.085772]
[1726238471302,0.085775,58289.0,58284.0,0.3608]
[1726238471507,0.085785,58282.0,58279.0,0.085789]
[1726238471706,0.3608,58285.0,58276.0,0.27]
[1726238471902,0.1005,58281.0,58276.0,0.27]
[1726238472098,0.1005,58281.0,58277.0,0.085791]
[1726238472901,0.085794,58276.0,58270.0,0.3608]
[1726238473102,0.085794,58276.0,58267.0,0.27]
[1726238473103,0.3608,58279.0,58272.0,0.085798]
[1726238473302,0.3608,58279.0,58267.0,0.27]
[1726238473303,0.3608,58273.0,58267.0,0.085807]
[1726238473503,0.1093,58272.0,58267.0,0.27]
[1726238473801,0.1093,58272.0,58271.0,0.085801]
[1726238474307,0.3608,58274.0,58267.0,0.27]
[1726238474308,0.3608,58274.0,58273.0,0.085798]
[1726238475205,0.3608,58274.0,58266.0,0.085808]
[1726238475393,0.1088,58273.0,58267.0,0.085807]
[1726238475597,0.1088,58273.0,58265.0,0.3608]
[1726238475598,0.085804,58269.0,58265.0,0.3608]
[1726238475799,0.3608,58266.0,58258.0,0.27]
[1726238475995,0.1088,58273.0,58269.0,0.085804]
[1726238476200,0.3608,58274.0,58267.0,0.27]
[1726238476800,0.446597,58274.0,58270.0,0.085801]
[1726238477499,0.4623,58281.0,58279.0,0.085789]
[1726238477702,0.4623,58281.0,58280.0,0.085788]
[1726238477703,0.001,58281.0,58280.0,0.085788]
[1726238477900,0.085765,58296.0,58294.0,0.085767]
[1726238478111,0.1062,58298.0,58290.0,0.085773]
[1726238478417,0.1062,58298.0,58289.0,0.27]
[1726238478603,0.1062,58298.0,58292.0,0.08577]
[1726238478802,0.085767,58295.0,58292.0,0.08577]
[1726238479113,0.085768,58294.0,58292.0,0.08577]
[1726238479303,0.085768,58294.0,58288.0,0.085776]
[1726238479503,0.1062,58298.0,58284.0,0.3608]
[1726238479702,0.085768,58294.0,58284.0,0.3608]
[1726238479903,0.085769,58293.0,58289.0,0.085774]
[1726238480102,0.085771,58292.0,58289.0,0.085774]
[1726238480604,0.1062,58298.0,58288.0,0.27]
[1726238480804,0.467,58298.0,58288.0,0.27]
[1726238481013,0.467,58298.0,58284.0,0.3608]
[1726238481014,0.1062,58298.0,58297.0,0.085763]
[1726238481913,0.1069,58312.0,58302.0,0.085754]
[1726238482122,0.085747,58309.0,58303.0,0.085754]
[1726238482304,0.085747,58309.0,58303.0,0.355754]
[1726238482500,0.1033,58310.0,58303.0,0.355754]
[1726238482501,0.1033,58310.0,58306.0,0.08575]
[1726238482703,0.1033,58310.0,58303.0,0.27]
[1726238482919,0.1033,58310.0,58303.0,0.085754]
[1726238483111,0.085747,58308.0,58304.0,0.085752]
[1726238483811,0.1033,58310.0,58301.0,0.3608]
[1726238484016,0.1033,58310.0,58307.0,0.085748]
[1726238485108,0.085745,58309.0,58298.0,0.27]
[1726238485413,0.085751,58306.0,58303.0,0.085754]
[1726238486519,0.085751,58306.0,58298.0,0.27]
[1726238486520,0.085751,58306.0,58304.0,0.085752]
[1726238486807,0.189044,58310.0,58306.0,0.085749]
[1726238487014,0.085745,58309.0,58303.0,0.27]
[1726238487202,0.3608,58304.0,58302.0,0.085756]
[1726238487405,0.3608,58304.0,58286.0,0.05124258]
[1726238487406,0.085757,58301.0,58297.0,0.085762]
[1726238487603,0.085753,58304.0,58294.0,0.00622908]
[1726238487803,0.3608,58306.0,58288.0,0.3608]
[1726238487804,0.3608,58306.0,58305.0,0.085751]
[1726238489512,0.3608,58306.0,58301.0,0.085756]
[1726238489815,0.085759,58300.0,58297.0,0.085762]
[1726238490112,0.446555,58303.0,58293.0,0.085768]
[1726238490113,0.3608,58298.0,58293.0,0.085768]
[1726238490314,0.3608,58298.0,58291.0,0.27]
[1726238490710,0.085768,58294.0,58285.0,0.27]
[1726238490914,0.1111,58297.0,58290.0,0.27]
[1726238491120,0.1111,58297.0,58296.0,0.085764]
[1726238492517,0.196863,58297.0,58296.0,0.085764]
[1726238492707,0.196863,58297.0,58290.0,0.27]
[1726238492708,0.085765,58296.0,58290.0,0.27]
[1726238492912,0.085765,58296.0,58294.0,0.085767]
[1726238493214,0.085765,58296.0,58290.0,0.27]
[1726238493408,0.085769,58293.0,58285.0,0.00646203]
[1726238493615,0.3608,58292.0,58284.0,0.27]
[1726238493810,0.3608,58292.0,58291.0,0.085772]
[1726238495121,0.085774,58290.0,58289.0,0.085774]
[1726238495518,0.085777,58288.0,58272.0,0.085798]
[1726238495720,0.085777,58288.0,58269.0,0.27]
[1726238495721,0.3608,58279.0,58269.0,0.27]
[1726238495918,0.446584,58283.0,58273.0,0.27]
[1726238496118,0.3608,58283.0,58282.0,0.085785]
[1726238496323,0.00648985,58290.0,58282.0,0.085785]
[1726238496617,0.3608,58291.0,58290.0,0.085773]
[1726238500019,0.3608,58303.0,58302.0,0.085756]
[1726238500215,0.3608,58303.0,58298.0,0.08576]
[1726238500423,0.08576,58299.0,58298.0,0.08576]
[1726238500619,0.45279071,58303.0,58290.0,0.6308]
[1726238500924,0.36703671,58303.0,58290.0,0.63705906]
[1726238501126,0.085759,58300.0,58290.0,0.63705906]
[1726238501515,0.36703671,58303.0,58294.0,0.27]
[1726238501721,0.085756,58302.0,58299.0,0.085759]
[1726238501924,0.085756,58302.0,58301.0,0.085757]
[1726238502125,0.36703671,58303.0,58302.0,0.085756]
[1726238504827,0.1071,58304.0,58303.0,0.085754]
[1726238505032,0.192853,58304.0,58303.0,0.085754]
[1726238505421,0.19911074,58304.0,58303.0,0.085754]
[1726238506026,0.1071,58304.0,58303.0,0.085754]
[1726238506728,0.1066,58314.0,58304.0,0.085753]
[1726238506933,0.1066,58314.0,58313.0,0.085739]
[1726238507437,0.1066,58314.0,58307.0,0.446548]
[1726238507438,0.085746,58311.0,58310.0,0.085743]
[1726238509128,0.085746,58311.0,58301.0,0.446556]
[1726238509129,0.085749,58307.0,58306.0,0.085748]
[1726238509330,0.3608,58308.0,58307.0,0.085748]
[1726238509731,0.085752,58306.0,58305.0,0.085751]
[1726238510235,0.085752,58306.0,58297.0,0.5608]
[1726238510435,0.085755,58303.0,58302.0,0.085753]
[1726238511733,0.446555,58303.0,58302.0,0.085753]
[1726238511930,0.085759,58300.0,58299.0,0.085759]
[1726238512327,0.085759,58300.0,58297.0,0.20642945]
[1726238512328,0.191256,58302.0,58301.0,0.085757]
[1726238512943,0.1055,58302.0,58301.0,0.085757]
[1726238514141,0.191256,58302.0,58301.0,0.085757]
[1726238514731,0.1055,58302.0,58301.0,0.085757]
[1726238515745,0.3608,58303.0,58302.0,0.085756]
[1726238516036,0.3608,58303.0,58301.0,0.285757]
[1726238516037,0.08575,58306.0,58305.0,0.085751]
[1726238516737,0.00644801,58307.0,58306.0,0.08575]
[1726238516948,0.3608,58308.0,58307.0,0.085748]
[1726238518030,0.3608,58308.0,58307.0,0.171496]
[1726238518233,0.3608,58308.0,58307.0,0.085748]
[1726238518429,0.1047,58312.0,58311.0,0.171484]
[1726238518634,0.36935778,58322.0,58314.0,0.085738]
[1726238518635,0.3608,58322.0,58314.0,0.085738]
[1726238518946,0.085726,58323.0,58322.0,0.085726]
[1726238518947,0.1053,58323.0,58322.0,0.085726]
[1726238520248,0.1053,58323.0,58318.0,0.085731]
[1726238520437,0.085731,58319.0,58318.0,0.085731]
[1726238520741,0.3608,58319.0,58317.0,0.085732]
[1726238520948,0.3608,58319.0,58311.0,0.3671714]
[1726238521244,0.3608,58319.0,58311.0,0.3608]
[1726238521435,0.085736,58315.0,58314.0,0.085737]
[1726238522552,0.08574,58313.0,58311.0,0.3608]
[1726238522744,0.3608,58314.0,58310.0,0.2]
[1726238522940,0.085742,58311.0,58308.0,0.00631283]
[1726238523138,0.3608,58309.0,58308.0,0.085747]
[1726238523645,0.085751,58305.0,58300.0,0.00640667]
[1726238523944,0.085749,58307.0,58306.0,0.08575]
[1726238524443,0.085752,58305.0,58302.0,0.285755]
[1726238524638,0.085753,58304.0,58303.0,0.085753]
[1726238524840,0.085753,58304.0,58297.0,0.2]
[1726238524841,0.3608,58304.0,58297.0,0.2]
[1726238525034,0.085757,58302.0,58301.0,0.085757]
[1726238525543,0.3608,58304.0,58297.0,0.2]
[1726238525544,0.08576,58300.0,58297.0,0.085763]
[1726238525757,0.3608,58298.0,58297.0,0.085763]
[1726238526345,0.446561,58298.0,58297.0,0.085763]
[1726238526648,1.4754,58298.0,58288.0,0.00730648]
[1726238526846,0.085776,58288.0,58287.0,0.085777]
[1726238527041,0.085779,58286.0,58284.0,0.085782]
[1726238527237,0.1092,58287.0,58286.0,0.085779]
[1726238527641,0.1092,58287.0,58279.0,0.446589]
[1726238527943,0.3608,58284.0,58281.0,0.2]
[1726238528463,0.3608,58284.0,58283.0,0.085784]
[1726238530343,0.3178,58294.0,58292.0,0.08577]
[1726238530551,0.2091,58294.0,58293.0,0.285769]
[1726238530751,0.21561364,58294.0,58293.0,0.285769]
[1726238530943,0.3608,58299.0,58293.0,0.285769]
[1726238530944,0.446561,58299.0,58293.0,0.2]
[1726238531136,0.3608,58299.0,58294.0,0.085767]
[1726238531350,0.446561,58299.0,58294.0,0.085767]
[1726238531954,0.085761,58299.0,58298.0,0.085761]
[1726238532137,0.085761,58298.0,58297.0,0.2]
[1726238532339,0.36707545,58300.0,58291.0,0.085772]
[1726238532538,0.36707545,58300.0,58289.0,0.3608]
[1726238532539,0.085766,58296.0,58289.0,0.3608]
[1726238532742,0.085766,58296.0,58289.0,0.36723829]
[1726238532951,0.285766,58296.0,58290.0,0.085773]
[1726238533154,0.085771,58292.0,58291.0,0.085772]
[1726238533450,0.3608,58292.0,58287.0,0.2]
[1726238533649,0.085776,58288.0,58287.0,0.285776]
[1726238533854,0.446571,58292.0,58287.0,0.2]
[1726238534043,0.446571,58292.0,58291.0,0.085772]
[1726238534662,0.36706729,58292.0,58287.0,0.2]
[1726238534952,0.085776,58288.0,58287.0,0.285776]
[1726238535751,0.085776,58288.0,58287.0,0.085776]
[1726238536052,0.45283829,58292.0,58291.0,0.085772]
[1726238536754,0.3608,58292.0,58291.0,0.285772]
[1726238537052,0.085769,58293.0,58292.0,0.085767]
[1726238539048,0.10960623,58295.0,58294.0,0.085767]
[1726238539049,0.19537223,58295.0,58294.0,0.085767]
[1726238539250,0.3608,58302.0,58292.0,0.5608]
[1726238539451,0.3608,58302.0,58301.0,0.285757]
[1726238539653,0.446556,58302.0,58301.0,0.285757]
[1726238539855,0.3608,58302.0,58301.0,0.085757]
[1726238540156,0.3608,58302.0,58301.0,0.2]
[1726238540157,0.085756,58302.0,58301.0,0.2]
[1726238540349,0.3608,58303.0,58302.0,0.085756]
[1726238540957,0.3608,58303.0,58297.0,0.2]
[1726238541158,0.085763,58298.0,58292.0,0.36811472]
[1726238541455,0.36720806,58303.0,58292.0,0.085769]
[1726238541456,0.085771,58293.0,58292.0,0.085769]
[1726238543045,0.3608,58296.0,58280.0,0.2]
[1726238543046,0.5608,58295.0,58280.0,0.2]
[1726238543258,0.3608,58288.0,58287.0,0.085778]
[1726238543759,0.4658,58288.0,58287.0,0.085778]
[1726238545456,0.551576,58288.0,58287.0,0.085778]
[1726238546356,0.085781,58285.0,58284.0,0.2]
[1726238546551,0.085787,58282.0,58281.0,0.085785]
[1726238546950,0.085781,58285.0,58284.0,0.085782]
[1726238547464,0.085788,58280.0,58279.0,0.085788]
[1726238549261,0.085788,58280.0,58276.0,0.2]
[1726238549464,0.085807,58267.0,58266.0,0.05124258]
[1726238549679,0.085811,58265.0,58260.0,0.0012]
[1726238549962,0.085813,58263.0,58262.0,0.085813]
[1726238550366,0.1003,58264.0,58263.0,0.085813]
[1726238550564,0.186111,58264.0,58263.0,0.085813]
[1726238550953,0.1003,58264.0,58260.0,0.2]
[1726238551163,0.3608,58261.0,58260.0,0.2]
[1726238551960,0.3608,58261.0,58259.0,0.085818]
[1726238552461,0.085817,58260.0,58259.0,0.085818]
[1726238553170,0.3608,58261.0,58260.0,0.085817]
[1726238553462,0.3608,58261.0,58260.0,0.285817]
[1726238553667,0.1003,58264.0,58263.0,0.085813]
[1726238553971,0.3608,58270.0,58269.0,0.171608]
[1726238554173,0.3608,58270.0,58269.0,0.285804]
[1726238554364,0.3608,58270.0,58269.0,0.085804]
[1726238554873,0.446603,58270.0,58269.0,0.085804]
[1726238555866,0.08581,58266.0,58265.0,0.085809]
[1726238556357,0.548803,58270.0,58261.0,0.2063079]
[1726238556772,0.085806,58268.0,58267.0,0.085806]
[1726238557188,0.463,58270.0,58269.0,0.085804]
[1726238557361,0.548803,58270.0,58269.0,0.085804]
[1726238558070,0.55516138,58270.0,58269.0,0.085804]
[1726238559779,0.085813,58265.0,58264.0,0.085811]
[1726238560273,0.085815,58262.0,58261.0,0.085814]
[1726238561872,0.2116,58264.0,58253.0,0.56727644]
[1726238562073,0.085816,58262.0,58261.0,0.085815]
[1726238562665,0.21814417,58264.0,58263.0,0.085813]
[1726238562879,0.30395517,58264.0,58263.0,0.085813]
[1726238563573,0.2116,58264.0,58263.0,0.085813]
[1726238563975,0.085809,58267.0,58266.0,0.085808]
[1726238566176,0.00088,58270.0,58269.0,0.171608]
[1726238566385,0.3608,58282.0,58266.0,1.47568]
[1726238566386,0.004,58285.0,58284.0,0.085782]
[1726238566681,0.11547343,58287.0,58286.0,0.085779]
[1726238566875,0.00647343,58287.0,58286.0,0.085779]
[1726238567179,0.3608,58290.0,58289.0,0.085775]
[1726238568673,0.1106,58293.0,58292.0,0.08577]
[1726238569777,0.36713352,58294.0,58292.0,0.08577]
[1726238569778,0.3608,58294.0,58293.0,0.085769]
[1726238570077,0.3608,58301.0,58297.0,0.085762]
[1726238570880,0.446558,58301.0,58297.0,0.085762]
[1726238571067,0.446558,58301.0,58298.0,0.085761]
[1726238572077,0.45297439,58301.0,58298.0,0.085761]
[1726238572289,0.08576,58299.0,58298.0,0.085761]
[1726238572977,0.36721639,58301.0,58300.0,0.085759]
[1726238573479,0.36721639,58301.0,58292.0,0.36715254]
[1726238573480,0.08576,58299.0,58292.0,0.36715254]
[1726238573780,0.08576,58299.0,58297.0,0.085763]
[1726238573983,0.36721639,58301.0,58292.0,0.56715254]
[1726238574185,0.36721639,58301.0,58300.0,0.085759]
[1726238574487,0.08575,58306.0,58305.0,0.085751]
[1726238574788,0.5688,58309.0,58300.0,0.2]
[1726238574975,0.085751,58305.0,58304.0,0.085751]
[1726238575176,0.5678,58309.0,58307.0,0.085747]
[1726238575177,0.654466,58309.0,58307.0,0.085747]
[1726238575482,0.085747,58308.0,58307.0,0.085747]
[1726238576085,0.4727589,58309.0,58303.0,0.085753]
[1726238576275,0.085753,58305.0,58304.0,0.085753]
[1726238579483,0.00088,58309.0,58308.0,0.085747]
[1726238579691,0.085744,58311.0,58310.0,0.085743]
[1726238580879,0.085749,58308.0,58307.0,0.085748]
[1726238582185,0.085743,58311.0,58310.0,0.085742]
[1726238583085,0.300839,58314.0,58313.0,0.085739]
[1726238583887,0.085745,58310.0,58304.0,0.20645072]
[1726238584375,0.085745,58310.0,58309.0,0.085745]
[1726238585787,0.085745,58310.0,58302.0,0.446555]
[1726238585788,0.085745,58309.0,58305.0,0.08575]
[1726238585986,0.085752,58306.0,58305.0,0.08575]
[1726238587890,0.085754,58303.0,58302.0,0.085754]
[1726238588077,0.5608,58303.0,58300.0,0.085758]
[1726238588276,0.08576,58301.0,58300.0,0.085758]
[1726238588987,0.085764,58298.0,58297.0,0.085762]
[1726238589288,0.085764,58296.0,58295.0,0.3608]
[1726238589476,0.085764,58296.0,58287.0,0.3608]
[1726238589477,0.085776,58290.0,58289.0,0.085773]
[1726238589982,0.446576,58290.0,58289.0,0.085773]
[1726238590487,0.08578,58286.0,58285.0,0.085779]
[1726238590689,0.2,58287.0,58274.0,0.5608]
[1726238590985,0.5608,58283.0,58278.0,0.08579]
[1726238591187,0.085789,58279.0,58278.0,0.08579]
[1726238591386,0.085795,58275.0,58274.0,0.00152]
[1726238591589,0.085797,58274.0,58262.0,0.2]
[1726238591787,0.5608,58275.0,58268.0,0.085805]
[1726238592087,0.5608,58275.0,58262.0,0.085813]
[1726238592088,0.56168,58275.0,58262.0,0.085813]
[1726238592283,0.56168,58275.0,58261.0,0.36714298]
[1726238592284,0.085805,58269.0,58261.0,0.36714298]
[1726238592482,0.085806,58268.0,58264.0,0.085811]
[1726238592787,0.1087,58268.0,58261.0,0.36714298]
[1726238592982,0.1087,58268.0,58266.0,0.085808]
[1726238593180,0.1087,58268.0,58261.0,0.36714298]
[1726238593379,0.1087,58268.0,58264.0,0.085811]
[1726238593587,0.194506,58268.0,58264.0,0.085811]
[1726238594090,0.085808,58267.0,58264.0,0.085811]
[1726238594488,0.085808,58267.0,58266.0,0.085809]
[1726238594988,0.1087,58268.0,58267.0,0.085807]
[1726238595291,0.3608,58269.0,58268.0,0.085806]
[1726238595993,0.1045,58270.0,58269.0,0.085804]
[1726238596189,0.1045,58270.0,58267.0,0.2]
[1726238596492,0.085805,58269.0,58265.0,0.08581]
[1726238596688,0.085813,58264.0,58262.0,0.085814]
[1726238596990,0.2,58268.0,58263.0,0.085812]
[1726238597197,0.08581,58265.0,58263.0,0.085812]
[1726238597384,0.2,58268.0,58259.0,0.085818]
[1726238597584,0.085817,58261.0,58260.0,0.085817]
[1726238598690,0.105,58264.0,58263.0,0.085813]
[1726238598896,0.551611,58264.0,58263.0,0.085813]
[1726238599391,0.3608,58264.0,58263.0,0.085813]
[1726238599597,0.3608,58269.0,58268.0,0.085806]
[1726238599785,0.446604,58269.0,58268.0,0.085806]
[1726238600186,0.45311525,58269.0,58268.0,0.085806]
[1726238600389,0.3608,58269.0,58268.0,0.085806]
[1726238600606,0.1052,58273.0,58272.0,0.0858]
[1726238600894,0.085792,58278.0,58269.0,0.2]
[1726238601098,0.085792,58277.0,58269.0,0.2]
[1726238601300,0.001,58280.0,58279.0,0.085789]
[1726238601489,0.1075,58284.0,58282.0,0.085784]
[1726238601795,0.085784,58283.0,58282.0,0.085784]
[1726238602396,0.1075,58284.0,58279.0,0.3608]
[1726238602397,0.193282,58284.0,58283.0,0.085784]
[1726238602595,0.1075,58284.0,58283.0,0.085784]
[1726238602995,0.085781,58285.0,58284.0,0.085778]
[1726238603499,0.47481689,58288.0,58280.0,0.2]
[1726238603702,0.47393689,58288.0,58280.0,0.2]
[1726238603994,0.085783,58284.0,58283.0,0.085782]
[1726238604597,0.2,58284.0,58273.0,0.36216]
[1726238604804,0.3608,58283.0,58277.0,0.085791]
[1726238605003,0.085796,58275.0,58274.0,0.085797]
[1726238605498,0.1029,58282.0,58273.0,0.3608]
[1726238605707,0.08579,58279.0,58278.0,0.085789]
[1726238607404,0.1029,58282.0,58281.0,0.085786]
[1726238607698,0.085784,58283.0,58282.0,0.085785]
[1726238608000,0.085784,58283.0,58282.0,0.285785]
[1726238608196,0.47393689,58288.0,58286.0,0.085778]
[1726238608197,0.085778,58287.0,58286.0,0.085778]
[1726238608991,0.11401689,58288.0,58284.0,0.3608]
[1726238609199,0.19891289,58288.0,58287.0,0.085778]
[1726238609505,0.11313689,58288.0,58287.0,0.085778]
[1726238609717,0.004,58303.0,58290.0,0.085773]
[1726238610006,0.085757,58301.0,58300.0,0.3608]
[1726238610509,0.1008,58310.0,58300.0,0.3608]
[1726238610510,0.446536,58316.0,58314.0,0.085737]
[1726238610698,0.2052,58315.0,58310.0,0.3608]
[1726238610898,0.00644268,58322.0,58313.0,0.2]
[1726238611106,0.08573,58320.0,58310.0,0.3608]
[1726238611404,0.36728802,58323.0,58310.0,0.3608]
[1726238611605,0.36728802,58323.0,58321.0,0.3608]
[1726238611606,0.085726,58322.0,58321.0,0.3608]
[1726238611913,0.2052,58325.0,58321.0,0.3608]
[1726238612208,0.085725,58324.0,58319.0,0.08573]
[1726238612409,0.2052,58325.0,58316.0,0.3608]
[1726238612608,0.2052,58325.0,58321.0,0.085727]
[1726238613197,0.290922,58325.0,58321.0,0.085727]
[1726238613914,0.290922,58325.0,58316.0,0.36707108]
[1726238614302,0.290922,58325.0,58322.0,0.3608]
[1726238614499,0.085722,58325.0,58322.0,0.3608]
[1726238614803,0.27,58328.0,58322.0,0.3608]
[1726238615006,0.27,58328.0,58316.0,0.3608]
[1726238615007,0.3608,58325.0,58316.0,0.3608]
[1726238615213,0.3608,58325.0,58321.0,0.085727]
[1726238615606,0.3608,58325.0,58316.0,0.3608]
[1726238615809,0.085721,58326.0,58316.0,0.3608]
[1726238616104,0.446522,58325.0,58314.0,0.27651564]
[1726238616411,0.355725,58323.0,58319.0,0.08573]
[1726238616610,0.3608,58320.0,58308.0,0.3608]
[1726238616806,0.3608,58325.0,58308.0,0.3608]
[1726238616807,0.3608,58325.0,58314.0,0.3608]
[1726238617011,0.3608,58319.0,58318.0,0.085732]
[1726238618013,0.45375016,58325.0,58318.0,0.27]
[1726238618206,0.45287016,58325.0,58321.0,0.085728]
[1726238618715,0.45287016,58325.0,58314.0,0.3608]
[1726238618716,0.27,58322.0,58314.0,0.446538]
[1726238618911,0.085731,58319.0,58314.0,0.36716184]
[1726238619219,0.085725,58323.0,58314.0,0.36716184]
[1726238619418,0.085725,58323.0,58318.0,0.001]
[1726238619419,0.099731,58319.0,58318.0,0.001]
[1726238620117,0.085732,58319.0,58315.0,0.085736]
[1726238620305,0.085732,58319.0,58314.0,0.3618]
[1726238620306,0.085732,58319.0,58317.0,0.085733]
[1726238620615,0.3608,58325.0,58318.0,0.085732]
[1726238620804,0.014,58319.0,58318.0,0.086732]
[1726238621203,0.099731,58319.0,58318.0,0.086732]
[1726238622211,0.014,58319.0,58318.0,0.086732]
[1726238622617,0.014,58319.0,58318.0,1.286864]
[1726238623116,0.1073,58327.0,58326.0,0.08572]
[1726238623417,0.00088,58331.0,58330.0,0.171428]
[1726238623606,0.27,58345.0,58326.0,0.6308]
[1726238623607,0.00622272,58337.0,58336.0,0.085705]
[1726238623808,0.1095,58343.0,58337.0,0.085704]
[1726238624207,0.085703,58338.0,58337.0,0.085704]
[1726238624417,0.1095,58343.0,58328.0,0.3608]
[1726238624418,0.27,58340.0,58333.0,0.3608]
[1726238624618,0.085701,58339.0,58331.0,0.085712]
[1726238624823,0.085711,58332.0,58331.0,0.085712]
[1726238625318,0.085716,58329.0,58328.0,0.446517]
[1726238626418,0.085716,58329.0,58328.0,0.3608]
[1726238626814,0.085728,58321.0,58320.0,0.3608]
[1726238627620,0.085722,58325.0,58320.0,0.3608]
[1726238627825,0.085722,58325.0,58324.0,0.085723]
[1726238628413,0.2204,58328.0,58320.0,0.3618]
[1726238628721,0.2204,58328.0,58324.0,0.085723]
[1726238628722,0.085723,58325.0,58324.0,0.085723]
[1726238629228,0.085723,58325.0,58320.0,0.001]
[1726238629229,0.085728,58321.0,58320.0,0.001]
[1726238629430,0.085728,58321.0,58320.0,0.3618]
[1726238630111,0.09214706,58321.0,58320.0,0.3618]
[1726238630523,0.10314706,58321.0,58320.0,0.3618]
[1726238630724,0.10314706,58321.0,58320.0,0.447529]
[1726238631221,0.10314706,58321.0,58320.0,0.3618]
[1726238631420,0.11514706,58321.0,58320.0,0.3628]
[1726238632022,0.11514706,58321.0,58320.0,0.448529]
[1726238633013,0.11514706,58321.0,58320.0,0.3628]
[1726238633921,0.11514706,58321.0,58320.0,0.002]
[1726238634328,0.20087506,58321.0,58320.0,0.002]
[1726238634720,0.171476,58314.0,58313.0,0.3608]
[1726238635321,0.085738,58314.0,58313.0,0.446539]
[1726238635519,0.085738,58314.0,58313.0,0.3608]
[1726238635826,0.085747,58308.0,58302.0,0.085754]
[1726238636029,0.085755,58303.0,58302.0,0.085754]
[1726238636227,0.084755,58303.0,58302.0,0.085754]
[1726238636430,0.084755,58303.0,58302.0,0.09222025]
[1726238636730,0.085742,58311.0,58310.0,0.085741]
[1726238636921,0.085742,58311.0,58305.0,0.085749]
[1726238636922,0.2131,58313.0,58312.0,0.085741]
[1726238637132,0.09328529,58316.0,58315.0,0.085736]
[1726238637632,0.09224528,58316.0,58315.0,0.085736]
[1726238639631,0.10024528,58316.0,58315.0,0.086736]
[1726238640028,0.16603765,58316.0,58315.0,0.087736]
[1726238640435,0.08030265,58316.0,58315.0,0.087736]
[1726238640736,0.07379237,58316.0,58315.0,0.173472]
[1726238641038,0.021,58316.0,58315.0,0.173472]
[1726238643829,0.021,58316.0,58315.0,0.087736]
[1726238644923,0.021,58316.0,58315.0,0.173472]
[1726238645439,1e-06,58316.0,58315.0,1.373648]
[1726238645943,1e-06,58316.0,58315.0,1.573648]
[1726238646140,0.004,58333.0,58332.0,0.085711]
[1726238646329,0.05335576,58333.0,58332.0,0.446511]
[1726238646533,0.1094,58338.0,58337.0,0.085704]
[1726238646534,0.22805137,58338.0,58337.0,0.085704]
[1726238646736,0.16286597,58338.0,58337.0,0.446504]
[1726238647034,0.1094,58338.0,58337.0,0.446504]
[1726238647229,0.195103,58338.0,58337.0,0.446504]
[1726238647839,0.1164,58338.0,58337.0,0.447504]
[1726238648536,0.1164,58338.0,58337.0,0.448504]
[1726238648537,0.1294,58338.0,58337.0,0.448504]
[1726238649130,0.02,58338.0,58337.0,0.648504]
[1726238649353,0.085674,58358.0,58337.0,1.67704]
[1726238649642,0.08567,58360.0,58355.0,0.085677]
[1726238649847,0.1101,58363.0,58362.0,0.085667]
[1726238649848,0.1014,58363.0,58362.0,0.085667]
[1726238650141,0.1014,58363.0,58362.0,0.285667]
[1726238650638,0.10763029,58363.0,58361.0,0.3608]